[Event "CCT Chesscom Classic-D2 2024"]
[Site "Online"]
[Date "2024.05.10"]
[Round "1"]
[White "Kollars, Dmitrij"]
[Black "Dominguez Perez, Leinier"]
[Result "1/2-1/2"]
[ECO "C50"]
[WhiteElo "2648"]
[BlackElo "2748"]
[Annotator "TA"]
[PlyCount "63"]
[EventDate "2024.05.08"]
[EventType "k.o."]
[EventCountry "NET"]
[SourceTitle "playchess.com"]
[Source "ChessBase"]
[SourceQuality "1"]
[TimeControl "600+2"]

{[%evp 10,63,8,0,10,0,0,0,0,0,1,0,39,27,70,61,60,15,53,51,51,12,10,0,0,0,18,35,26,24,37,12,34,38,43,25,47,31,41,42,66,35,35,18,20,28,62,46,52,39,45,0,64,0,42,0]} 1. e4 {[%emt 0:00:03]} e5 {[%emt 0:00:04]} 2. Nf3 {[%emt 0:00:02]} Nc6 {[%emt 0:00:01]} 3. Bc4 {[%emt 0:00:01]} Bc5 {[%emt 0:00:01]} 4. d3 {[%emt 0:00:01]} Nf6 {[%emt 0:00:01]} 5. Nc3 {[%emt 0:00:01]} h6 {[%emt 0:00:01]} 6. h3 {[%emt 0:00:01]} a6 {[%emt 0:00:01]} 7. Be3 {[%emt 0:00:04]} Bxe3 {[%emt 0:00:01]} 8. fxe3 {[%emt 0:00:00]} d6 {[%emt 0:00:01] The position is equal.} 9. a3 {[%emt 0:00:00]} Be6 {[%emt 0:00:02]} 10. Nd2 {[%emt 0:00:01]} O-O {[%emt 0:00:03]} 11. Qe2 {[%emt 0:00:08]} d5 {[%emt 0:00:01]} 12. exd5 {[%emt 0:00:03]} Nxd5 {[%emt 0:00:01]} 13. Nce4 {[%emt 0:00:48]} Qe7 {[%emt 0:01:21]} 14. Bxd5 {[%emt 0:02:36]} Bxd5 {[%emt 0:00:03]} 15. g4 {[%emt 0:00:00]} Qh4+ {[%emt 0:03:52]} 16. Qf2 {[%emt 0:00:02]} Qxf2+ {[%emt 0:00:01]} 17. Kxf2 {[%emt 0:00:00]} f5 {[%emt 0:00:09]} 18. gxf5 {[%emt 0:00:01]} Rxf5+ {[%emt 0:00:01]} 19. Ke2 {[%emt 0:00:10]} Raf8 {[%emt 0:00:10]} 20. c4 {[%emt 0:01:28]} Bxe4 {[%emt 0:01:13]} 21. Nxe4 {[%emt 0:00:02]} Nd8 {[%emt 0:00:14]} 22. Rag1 {[%emt 0:00:34]} Kh7 {[%emt 0:00:02]} 23. Rg3 {[%emt 0:00:36]} Ne6 {[%emt 0:00:14]} 24. Rhg1 {[%emt 0:00:16]} R8f7 {[%emt 0:00:02]} 25. h4 {[%emt 0:00:20]} a5 {[%emt 0:00:10]} 26. b4 {[%emt 0:00:26]} axb4 {[%emt 0:00:01]} 27. axb4 {[%emt 0:00:00]} b6 {[%emt 0:00:15]} 28. Rg6 {[%emt 0:00:34]} Re7 {[%emt 0:00:24][%cal Oe6g5]} 29. R6g4 {[%emt 0:00:03]} Ref7 {[%emt 0:00:03]} 30. Rg6 {[%emt 0:00:04]} Re7 {[%emt 0:00:03][%cal Oe6g5]} 31. R6g4 {[%emt 0:00:33] White is more active.} Ref7 {[%emt 0:00:03]} 32. Rg6 {[%emt 0:00:54] Weighted Error Value: White=0.17 (very precise) /Black=0.11 (very precise) .  Inaccurate:     	White=4     	Black=4      OK:         	White=6     	Black=10     Best:        	---       	Black=1} 1/2-1/2

[Event "CCT Chesscom Classic-D2 2024"]
[Site "Online"]
[Date "2024.05.10"]
[Round "1"]
[White "Kollars, Dmitrij"]
[Black "Dominguez Perez, Leinier"]
[Result "1-0"]
[ECO "C50"]
[WhiteElo "2648"]
[BlackElo "2748"]
[Annotator "RC"]
[PlyCount "135"]
[EventDate "2024.05.08"]
[EventType "k.o."]
[EventCountry "NET"]
[SourceTitle "playchess.com"]
[Source "ChessBase"]
[SourceQuality "1"]
[TimeControl "600+2"]

1. e4 {[%emt 0:00:03]} e5 {[%emt 0:00:06]} 2. Nf3 {[%emt 0:00:01]} Nc6 {[%emt 0:00:00]} 3. Bc4 {[%emt 0:00:06]} Bc5 {[%emt 0:00:02]} 4. d3 {[%emt 0:00:05]} Nf6 {[%emt 0:00:02]} 5. Nc3 {[%emt 0:00:02]} h6 {[%emt 0:00:09]} 6. h3 {[%emt 0:00:04]} a6 {[%emt 0:00:18]} 7. Be3 {[%emt 0:00:05]} Bxe3 {[%emt 0:00:29]} 8. fxe3 {[%emt 0:00:00]} d6 {[%emt 0:00:01]} 9. a3 {[%emt 0:00:04]} Be6 {[%emt 0:00:26]} 10. Nd2 {[%emt 0:00:02]} O-O {[%emt 0:00:27]} 11. Qe2 {[%emt 0:00:21]} Bxc4 {[%emt 0:00:33]} 12. dxc4 {[%emt 0:00:10]} Nb8 {[%emt 0:01:40]} 13. g4 {[%emt 0:00:32]} Ne8 {[%emt 0:00:22]} 14. h4 {[%emt 0:00:14]} g6 {[%emt 0:00:02]} 15. O-O-O {[%emt 0:00:09]} Nd7 {[%emt 0:00:02]} 16. h5 {[%emt 0:01:54]} g5 {[%emt 0:00:03]} 17. Nf1 {[%emt 0:00:12]} Ng7 {[%emt 0:00:26]} 18. Ng3 {[%emt 0:00:03]} f6 {[%emt 0:00:57]} 19. Rhf1 {[%emt 0:00:40]} Rf7 {[%emt 0:00:03]} 20. Kd2 {[%emt 0:00:14]} Qf8 {[%emt 0:00:15]} 21. Ke1 {[%emt 0:00:04]} Rd8 {[%emt 0:00:02]} 22. Kf2 {[%emt 0:00:06]} c6 {[%emt 0:00:06]} 23. a4 {[%emt 0:00:30]} a5 {[%emt 0:00:07]} 24. Kg2 {[%emt 0:00:04]} Nc5 {[%emt 0:00:06]} 25. Rd2 {[%emt 0:00:06]} Rfd7 {[%emt 0:00:15]} 26. b3 {[%emt 0:00:09]} Rf7 {[%emt 0:00:03]} 27. Qd1 {[%emt 0:00:12]} Rfd7 {[%emt 0:00:06]} 28. Rdf2 {[%emt 0:00:01]} Rf7 {[%emt 0:00:03]} 29. Qd2 {[%emt 0:00:21]} Qe7 {[%emt 0:00:03]} 30. Rd1 {[%emt 0:00:04]} Qf8 {[%emt 0:00:04]} 31. Nce2 {[%emt 0:00:03]} Qe7 {[%emt 0:00:07]} 32. Qxa5 {[%emt 0:00:17]} Qd7 {[%emt 0:00:01]} 33. Kh3 {[%emt 0:00:34]} Qc8 {[%emt 0:00:26]} 34. Qe1 {[%emt 0:00:12]} d5 {[%emt 0:00:15]} 35. cxd5 {[%emt 0:00:43]} cxd5 {[%emt 0:00:02]} 36. Qf1 {[%emt 0:01:04]} Nxe4 {[%emt 0:01:21]} 37. Nxe4 {[%emt 0:00:02]} dxe4 {[%emt 0:00:00]} 38. Rxd8+ {[%emt 0:00:03]} Qxd8 {[%emt 0:00:00]} 39. Ng3 {[%emt 0:00:00]} Qd5 {[%emt 0:00:12]} 40. Qb5 {[%emt 0:00:18]} Qe6 {[%emt 0:00:11]} 41. Qf1 {[%emt 0:00:17]} Qc6 {[%emt 0:00:12]} 42. Qg2 {[%emt 0:00:09]} f5 {[%emt 0:00:02]} 43. gxf5 {[%emt 0:00:05]} Ne8 {[%emt 0:00:23]} 44. Qxe4 {[%emt 0:00:05]} Qd6 {[%emt 0:00:10]} 45. Qd3 {[%emt 0:00:07]} Qc6 {[%emt 0:00:08]} 46. Qe4 {[%emt 0:00:03]} Qd6 {[%emt 0:00:01]} 47. Qc4 {[%emt 0:00:03]} Nf6 {[%emt 0:00:03]} 48. Ne4 {[%emt 0:00:09]} Nxe4 {[%emt 0:00:05]} 49. Qxe4 {[%emt 0:00:00]} Qd1 {[%emt 0:00:09]} 50. Qf3 {[%emt 0:00:01]} Qg1 {[%emt 0:00:03]} 51. f6 {[%emt 0:00:23]} e4 {[%emt 0:00:20]} 52. Qg2 {[%emt 0:00:05]} Qd1 {[%emt 0:00:03]} 53. Qxe4 {[%emt 0:00:10]} Qxh5+ {[%emt 0:00:02]} 54. Kg2 {[%emt 0:00:00]} g4 {[%emt 0:00:01]} 55. Qf4 {[%emt 0:00:06]} Kh7 {[%emt 0:00:12]} 56. e4 {[%emt 0:00:02]} Qh3+ {[%emt 0:00:04]} 57. Kg1 {[%emt 0:00:01]} h5 {[%emt 0:00:00]} 58. e5 {[%emt 0:00:01]} g3 {[%emt 0:00:02]} 59. Rg2 {[%emt 0:00:03]} h4 {[%emt 0:00:02]} 60. Qe4+ {[%emt 0:00:02]} Kh6 {[%emt 0:00:01]} 61. Rd2 {[%emt 0:00:04]} Kg5 {[%emt 0:00:04]} 62. Qe3+ {[%emt 0:00:02]} Kg6 {[%emt 0:00:01]} 63. Qe4+ {[%emt 0:00:01]} Kg5 {[%emt 0:00:01]} 64. e6 {[%emt 0:00:08]} Rxf6 {[%emt 0:00:01]} 65. Rd5+ {[%emt 0:00:00]} Kh6 {[%emt 0:00:02]} 66. Qe3+ {[%emt 0:00:01]} Kg7 {[%emt 0:00:06]} 67. Qg5+ {[%emt 0:00:01]} Kh7 {[%emt 0:00:01]} 68. Rd7+ {[%emt 0:00:02]} 1-0

[Event "CCT Chesscom Classic-D2 2024"]
[Site "Online"]
[Date "2024.05.10"]
[Round "1"]
[White "Bluebaum, Matthias"]
[Black "Dubov, Daniil"]
[Result "0-1"]
[ECO "D94"]
[WhiteElo "2647"]
[BlackElo "2707"]
[Annotator "TA"]
[PlyCount "100"]
[EventDate "2024.05.08"]
[EventType "k.o."]
[EventCountry "NET"]
[SourceTitle "playchess.com"]
[Source "ChessBase"]
[SourceQuality "1"]
[TimeControl "600+2"]

{[%evp 36,99,11,13,12,-176,-168,-340,-353,-29989,-425,-1612,-1604,-1591,-1438,-29984,-29985,-29985,-29986,-29985,-458,-489,-368,-411,-464,-456,-466,-424,-428,-469,-97,-197,0,-456,0,0,0,-4,0,0,0,-9,0,-561,-593,-575,-561,-601,-593,-29988,-5247,-29988,-29989,-29989,-29990,-29990,-29991,-29991,-29992,-29992,-29993,-29994,-29994,-29998,-29999,-29999]} 1. Nf3 {[%emt 0:00:04]} Nf6 {[%emt 0:00:04]} 2. c4 {[%emt 0:00:07]} c6 {[%emt 0:00:22]} 3. e3 {[%emt 0:00:13]} d5 {[%emt 0:00:02]} 4. Nc3 {[%emt 0:00:13]} g6 {[%emt 0:00:02]} 5. d4 {[%emt 0:00:10]} Bg7 {[%emt 0:00:02]} 6. h3 {[%emt 0:00:04]} O-O {[%emt 0:00:01]} 7. Be2 {[%emt 0:00:00]} Nbd7 {[%emt 0:00:08]} 8. O-O {[%emt 0:00:02]} dxc4 {[%emt 0:00:12]} 9. Bxc4 {[%emt 0:00:00]} b5 {[%emt 0:00:00]} 10. Bd3 {[%emt 0:00:16]} Bb7 {[%emt 0:00:29]} 11. e4 {[%emt 0:00:19]} b4 {[%emt 0:00:01]} 12. Na4 {[%emt 0:00:26]} c5 {[%emt 0:00:02]} 13. e5 {[%emt 0:00:11]} Nd5 {[%emt 0:00:20]} 14. e6 {[%emt 0:00:51]} fxe6 {[%emt 0:00:02]} 15. Ng5 {[%emt 0:00:01]} Bxd4 {[%emt 0:00:40]} 16. Nxh7 {[%emt 0:01:03]} Ne5 {[%emt 0:01:00]} 17. Nxf8 {[%emt 0:01:29]} Qxf8 {[%emt 0:00:00]} 18. Be4 {[%emt 0:00:49]} Rd8 {[%emt 0:00:56]} (18... Ba6 $2 19. Bxd5 (19. Nxc5 Bxc5 20. Bxd5 Bxf1 $15) 19... Bxf1 $16 (19... exd5 $2 20. Nxc5 Bxc5 21. Qxd5+ Nf7 22. Qxc5 $18)) 19. Qc2 $1 {[%emt 0:00:42]} Ba6 {[%emt 0:00:49]} (19... c4 $6 20. Be3 Bxe3 (20... Nxe3 $2 21. fxe3 Bxe3+ 22. Kh1 $18) 21. fxe3 $16) 20. Rd1 $2 {[%emt 0:00:29] [#]} (20. Nxc5 $1 $11 Bxf1 21. Nxe6) 20... b3 $1 $19 {[%emt 0:00:24]} 21. Qxb3 $2 {[%emt 0:01:04]} (21. axb3 {was the only chance.} Nb4 22. Rxd4 Nxc2 (22... Rxd4 $2 23. Qxc5 Rxe4 24. Be3 $17) 23. Rxd8 Qxd8 24. Bxc2) 21... Qxf2+ $19 {[%emt 0:00:03]} 22. Kh2 $2 {[%emt 0:00:01]} (22. Kh1 $19 Bc4 (22... Bf1 $2 23. Rxd4 cxd4 24. Nc5 $19) 23. Qa3) 22... Qh4 {[%emt 0:01:38]} (22... Bd3 $142 23. Bf5 Nf3+ (23... Qxf5 $2 24. Bh6 $19) 24. Kh1 Bf1 25. Bxe6+ Kh8 26. gxf3 Qg2#) 23. Bxd5 {[%emt 0:01:22]} (23. Qg3 $142 Qxe4 24. Nc3) 23... Ng4+ $19 {[%emt 0:00:15]} (23... Rxd5 24. Qg3 Qxg3+ 25. Kxg3 $17) 24. Kh1 {[%emt 0:00:01]} Rxd5 {[%emt 0:00:01]} 25. Qb8+ {[%emt 0:00:18]} Kh7 {[%emt 0:00:08]} 26. Bf4 {[%emt 0:00:09]} Nf2+ {[%emt 0:02:16]} 27. Kh2 {[%emt 0:00:01]} e5 {[%emt 0:00:12]} (27... Nxh3 $142 28. Bg3 Qh5 29. gxh3 Qe2+ 30. Kh1 Bb7 31. Qxb7 Qf3+ 32. Kh2 Bg1+ 33. Rxg1 Rd2+ 34. Rg2 Rxg2+ (34... Qxb7 $2 35. Rxd2 Qa6 36. Nxc5 $18) 35. Kh1 Qxb7 36. Nxc5 Qf3 (36... Rxg3+ $2 37. Nxb7 Rxh3+ 38. Kg2 $18) 37. Nxe6 Rxg3+ 38. Kh2 Qg2#) 28. Rxd4 $19 {[%emt 0:00:24]} cxd4 {[%emt 0:00:04]} (28... exd4 29. Bg3 Qe4 (29... Qf6 30. Re1 $16) 30. Bxf2 $16) 29. Bg3 {[%emt 0:00:08]} Ng4+ {[%emt 0:00:03]} 30. Kg1 {[%emt 0:00:01]} Qxg3 {[%emt 0:00:02]} 31. hxg4 {[%emt 0:00:00]} Qe3+ {[%emt 0:00:12]} (31... Qxg4 32. Qb3 Qd7 33. Qf3 $19) 32. Kh1 {[%emt 0:00:01]} Qh6+ {[%emt 0:00:23]} (32... Qg5 $142 33. Qe8 Kg7 (33... Qxg4 $2 34. Qf7+ Kh6 35. Qxd5 $18)) 33. Kg1 $19 {[%emt 0:00:00] [#]} Qe3+ $2 {[%emt 0:00:05]} (33... Qg5 $1 34. b4 e4 (34... Qxg4 35. Qf8 $15)) 34. Kh1 $1 $19 {[%emt 0:00:01]} Rd6 $2 {[%emt 0:00:08]} (34... Qg5 $19 35. Kg1 e4 (35... Qxg4 $2 36. Qf8 $19)) 35. Qe8 $1 $11 {[%emt 0:00:03]} Qh6+ {[%emt 0:00:01]} 36. Kg1 {[%emt 0:00:01]} Qe3+ {[%emt 0:00:00]} (36... Rf6 {seems wilder.} 37. Re1 Qf4 38. Qxe7+ Kh6) 37. Kh1 {[%emt 0:00:01]} Qh6+ {[%emt 0:00:02]} 38. Kg1 {[%emt 0:00:00]} Qg7 {[%emt 0:00:01]} (38... Rf6 {is more complex.} 39. Re1 Qf4 40. Qxe7+ Kh6) 39. Rc1 $2 {[%emt 0:00:03][%mdl 8192]} (39. Nc5 $11 {and White stays safe.}) 39... d3 $19 {[%emt 0:00:02]} 40. Nc3 {[%emt 0:00:11]} d2 {[%emt 0:00:01]} 41. Rd1 {[%emt 0:00:00]} e4 {[%emt 0:00:02]} 42. Qb8 {[%emt 0:00:05]} e3 {[%emt 0:00:03]} (42... Qd4+ $142 43. Kh2 g5 44. Qf8 Rh6+ 45. Qxh6+ Kxh6 46. Kh1 e3 47. a4 e2 (47... Qxg4 {leads to mate.} 48. Kg1 e2 49. Nxe2 Qxe2 50. b4 Qxd1+ 51. Kh2 Qe2 52. Kh3 Bb7 53. Kh2 Qxg2#) 48. Nxe2 Bxe2 49. Rg1 d1=R (49... Qxg1+ {is a self mate.} 50. Kxg1 d1=Q+ 51. Kf2 Bf1 52. Ke3 Qd3+ 53. Kf2 Qe2+ 54. Kg3 Qxg2#) 50. Rxd1 Qxd1+ 51. Kh2 Bf1 (51... Bxg4 52. b4 Be2 53. b5 Bf1 54. Kg3 Qe2 55. Kh3 Qxg2#) (51... Qd6+ 52. Kh1 Qd4 53. Kh2 Qf2 54. b4 Bf3 55. Kh3 Qxg2#) 52. Kg3 Qd2 53. Kh3 Qxg2#) 43. Ne4 {[%emt 0:00:00]} Qd4 {[%emt 0:00:03]} 44. Ng5+ {[%emt 0:00:02]} Kg7 {[%emt 0:00:01]} 45. Nf3 {[%emt 0:00:03]} e2+ {[%emt 0:00:02]} 46. Nxd4 {[%emt 0:00:01]} exd1=Q+ {[%emt 0:00:01]} 47. Kh2 {[%emt 0:00:00]} Qxg4 {[%emt 0:00:02]} 48. Nf3 {[%emt 0:00:01]} Qf4+ {[%emt 0:00:02]} 49. Kg1 {[%emt 0:00:01]} d1=Q+ {[%emt 0:00:01]} 50. Ne1 {[%emt 0:00:01]} Qxe1# {[%emt 0:00:01]} 0-1

[Event "CCT Chesscom Classic-D2 2024"]
[Site "Online"]
[Date "2024.05.10"]
[Round "1"]
[White "Bluebaum, Matthias"]
[Black "Dubov, Daniil"]
[Result "1/2-1/2"]
[ECO "D94"]
[WhiteElo "2647"]
[BlackElo "2707"]
[Annotator "RC"]
[PlyCount "100"]
[EventDate "2024.05.08"]
[EventType "k.o."]
[EventCountry "NET"]
[SourceTitle "playchess.com"]
[Source "ChessBase"]
[SourceQuality "1"]
[TimeControl "600+2"]

1. Nf3 {[%emt 0:00:04]} Nf6 {[%emt 0:00:04]} 2. c4 {[%emt 0:00:07]} c6 {[%emt 0:00:22]} 3. e3 {[%emt 0:00:13]} d5 {[%emt 0:00:02]} 4. Nc3 {[%emt 0:00:13]} g6 {[%emt 0:00:02]} 5. d4 {[%emt 0:00:10]} Bg7 {[%emt 0:00:02]} 6. h3 {[%emt 0:00:04]} O-O {[%emt 0:00:01]} 7. Be2 {[%emt 0:00:00]} Nbd7 {[%emt 0:00:08]} 8. O-O {[%emt 0:00:02]} dxc4 {[%emt 0:00:12]} 9. Bxc4 {[%emt 0:00:00]} b5 {[%emt 0:00:00]} 10. Bd3 {[%emt 0:00:16]} Bb7 {[%emt 0:00:29]} 11. e4 {[%emt 0:00:19]} b4 {[%emt 0:00:01]} 12. Na4 {[%emt 0:00:26]} c5 {[%emt 0:00:02]} 13. e5 {[%emt 0:00:11]} Nd5 {[%emt 0:00:20]} 14. e6 {[%emt 0:00:51]} fxe6 {[%emt 0:00:02]} 15. Ng5 {[%emt 0:00:01]} Bxd4 {[%emt 0:00:40]} 16. Nxh7 {[%emt 0:01:03]} Ne5 {[%emt 0:01:00]} 17. Nxf8 {[%emt 0:01:29]} Qxf8 {[%emt 0:00:00]} 18. Be4 {[%emt 0:00:49]} Rd8 {[%emt 0:00:56]} 19. Qc2 {[%emt 0:00:42]} Ba6 {[%emt 0:00:49]} 20. Rd1 {[%emt 0:00:29]} b3 {[%emt 0:00:24]} 21. Qxb3 {[%emt 0:01:04]} Qxf2+ {[%emt 0:00:03]} 22. Kh2 {[%emt 0:00:01]} Qh4 {[%emt 0:01:38]} 23. Bxd5 {[%emt 0:01:22]} Ng4+ {[%emt 0:00:15]} 24. Kh1 {[%emt 0:00:01]} Rxd5 {[%emt 0:00:01]} 25. Qb8+ {[%emt 0:00:18]} Kh7 {[%emt 0:00:08]} 26. Bf4 {[%emt 0:00:09]} Nf2+ {[%emt 0:02:16]} 27. Kh2 {[%emt 0:00:01]} e5 {[%emt 0:00:12]} 28. Rxd4 {[%emt 0:00:24]} cxd4 {[%emt 0:00:04]} 29. Bg3 {[%emt 0:00:08]} Ng4+ {[%emt 0:00:03]} 30. Kg1 {[%emt 0:00:01]} Qxg3 {[%emt 0:00:02]} 31. hxg4 {[%emt 0:00:00]} Qe3+ {[%emt 0:00:12]} 32. Kh1 {[%emt 0:00:01]} Qh6+ {[%emt 0:00:23]} 33. Kg1 {[%emt 0:00:00]} Qe3+ {[%emt 0:00:05]} 34. Kh1 {[%emt 0:00:01]} Rd6 {[%emt 0:00:08]} 35. Qe8 {[%emt 0:00:03]} Qh6+ {[%emt 0:00:01]} 36. Kg1 {[%emt 0:00:01]} Qe3+ {[%emt 0:00:00]} 37. Kh1 {[%emt 0:00:01]} Qh6+ {[%emt 0:00:02]} 38. Kg1 {[%emt 0:00:00]} Qg7 {[%emt 0:00:01]} 39. Rc1 {[%emt 0:00:03]} d3 {[%emt 0:00:02]} 40. Nc3 {[%emt 0:00:11]} d2 {[%emt 0:00:01]} 41. Rd1 {[%emt 0:00:00]} e4 {[%emt 0:00:02]} 42. Qb8 {[%emt 0:00:05]} e3 {[%emt 0:00:03]} 43. Ne4 {[%emt 0:00:00]} Qd4 {[%emt 0:00:03]} 44. Ng5+ {[%emt 0:00:02]} Kg7 {[%emt 0:00:01]} 45. Nf3 {[%emt 0:00:03]} e2+ {[%emt 0:00:02]} 46. Nxd4 {[%emt 0:00:01]} exd1=Q+ {[%emt 0:00:01]} 47. Kh2 {[%emt 0:00:00]} Qxg4 {[%emt 0:00:02]} 48. Nf3 {[%emt 0:00:01]} Qf4+ {[%emt 0:00:02]} 49. Kg1 {[%emt 0:00:01]} d1=Q+ {[%emt 0:00:01]} 50. Ne1 {[%emt 0:00:01]} Qxe1# {[%emt 0:00:01]} 1/2-1/2

[Event "CCT Chesscom Classic-D2 2024"]
[Site "Online"]
[Date "2024.05.10"]
[Round "1"]
[White "Hakobyan, Aram"]
[Black "Caruana, Fabiano"]
[Result "1-0"]
[ECO "C48"]
[WhiteElo "2617"]
[BlackElo "2805"]
[Annotator "TA"]
[PlyCount "109"]
[EventDate "2024.05.08"]
[EventType "k.o."]
[EventCountry "NET"]
[SourceTitle "playchess.com"]
[Source "ChessBase"]
[SourceQuality "1"]
[TimeControl "600+2"]

{[%evp 9,109,11,19,10,18,23,22,20,23,25,29,9,16,4,11,10,5,12,33,39,53,12,51,54,69,71,64,60,70,60,57,61,75,50,40,28,43,29,43,40,44,20,87,0,0,0,0,0,-8,0,0,-4,38,30,28,42,40,28,28,35,48,54,58,60,112,33,55,42,43,31,134,0,0,0,8,8,375,187,992,1323,1632,1326,6032,5818,679,5433,5433,5094,4721,5792,3874,4111,1498,1091,29976,29976,29980,29981,29982,29980,29980,29980]} 1. e4 {[%emt 0:00:09]} e5 {[%emt 0:00:06]} 2. Nf3 {[%emt 0:00:00]} Nc6 {[%emt 0:00:00]} 3. Nc3 {[%emt 0:00:13]} Nf6 {[%emt 0:00:03][%cal Bg8f6,Bf6g4,Bg4e3][%mdl 32]} 4. Bb5 {[%emt 0:00:00]} Bd6 {[%emt 0:00:06]} 5. d3 {[%emt 0:00:02]} h6 {[%emt 0:00:07]} 6. Be3 {[%emt 0:00:20]} a6 {[%emt 0:00:02]} 7. Ba4 {[%emt 0:00:09]} Ng4 {[%emt 0:01:06]} 8. a3 {[%emt 0:00:33] The position is equal.} Nxe3 {[%emt 0:00:18]} 9. fxe3 {[%emt 0:00:00]} Na5 {[%emt 0:00:25]} 10. Qd2 {[%emt 0:00:49]} b5 {[%emt 0:00:10]} 11. b4 {[%emt 0:00:12]} bxa4 {[%emt 0:00:08]} 12. bxa5 {[%emt 0:00:02][%cal Oa1b1]} O-O {[%emt 0:00:07]} 13. Nxa4 {[%emt 0:00:05]} Be7 {[%emt 0:00:16]} 14. O-O {[%emt 0:00:14]} d6 {[%emt 0:00:05]} 15. c4 {[%emt 0:00:08]} Bd7 {[%emt 0:00:21]} 16. Nc3 {[%emt 0:00:02]} c6 {[%emt 0:00:01] Prevents Nd5.} 17. Na4 {[%emt 0:00:01]} Rb8 {[%emt 0:00:15]} 18. Nb6 {[%emt 0:00:03][%cal Oc4c5]} Be6 {[%emt 0:00:11]} 19. Rab1 {[%emt 0:00:25] White is more active.} Qc7 {[%emt 0:00:03]} 20. Qc3 {[%emt 0:00:17][%cal Oc4c5]} f5 {[%emt 0:00:11]} 21. exf5 {[%emt 0:00:08]} Rxf5 {[%emt 0:00:03]} 22. e4 {[%emt 0:01:12]} Rf7 {[%emt 0:00:11] [#]} 23. c5 $1 {[%emt 0:00:06]} Rbf8 {[%emt 0:00:36]} (23... d5 24. d4) 24. Nc4 {[%emt 0:00:32]} Bxc4 {[%emt 0:00:53]} 25. Qxc4 {[%emt 0:00:10]} d5 {[%emt 0:00:01]} (25... Qxa5 $11 26. cxd6 Bxd6) 26. exd5 {[%emt 0:01:15]} ({Reject} 26. Qxa6 Bxc5+ 27. Kh1 Qd6 $11) (26. Qc3 $16) 26... cxd5 $11 {[%emt 0:00:02]} 27. Qxd5 {[%emt 0:00:00] Hoping for Rfc1.} Qxc5+ {[%emt 0:00:06]} 28. Qxc5 {[%emt 0:00:00]} Bxc5+ {[%emt 0:00:00]} 29. Kh1 {[%emt 0:00:01]} Bxa3 {[%emt 0:00:04][%cal Bc5a3,Ba3d6,Bd6c7][%mdl 32]} 30. Rfe1 {[%emt 0:00:04]} Rf5 {[%emt 0:00:53][%cal Oe5e4]} 31. Rxe5 {[%emt 0:00:50]} Bd6 {[%emt 0:00:34]} 32. Rxf5 {[%emt 0:00:01]} Rxf5 {[%emt 0:00:01][%mdl 4096] Endgame. KRB-KRN} 33. Rb6 {[%emt 0:00:03][%csl LRa6,LRd6]} Bc7 {[%emt 0:00:06]} 34. Rxa6 {[%emt 0:00:03] Strongly threatening Ra8+.} Bxa5 {[%emt 0:00:06]} 35. Kg1 {[%emt 0:00:10]} Rb5 {[%emt 0:00:05]} 36. d4 {[%emt 0:00:06]} Kh7 {[%emt 0:00:25]} (36... Bc7 $14) 37. h4 {[%emt 0:00:03]} ({White should play} 37. Kf2 $16) 37... Bd8 {[%emt 0:00:02]} 38. Kf2 {[%emt 0:00:04]} Rb2+ {[%emt 0:00:32]} 39. Kg3 {[%emt 0:00:03]} h5 {[%emt 0:00:00]} (39... Bf6 $14) 40. Ng5+ {[%emt 0:00:36]} (40. d5 $1 $16) 40... Bxg5 {[%emt 0:00:09]} 41. hxg5 {[%emt 0:00:00] KR-KR} Rb5 {[%emt 0:00:30]} 42. Kf4 {[%emt 0:01:13] White wants to play g3.} Rd5 $2 {[%emt 0:00:02][%mdl 8192] A mistake that costs the game.} (42... Rb2 $11 {and Black is okay.}) 43. Ke4 $1 $18 {[%emt 0:00:07]} Rxg5 {[%emt 0:00:01]} (43... Rb5 44. d5 Rb2) 44. Ra2 {[%emt 0:00:19]} Kg6 {[%emt 0:01:06] [#]} 45. Rf2 $1 {[%emt 0:00:06]} Ra5 {[%emt 0:00:10]} 46. d5 {[%emt 0:00:01][%cal Bd4d5,Bd5d6][%mdl 32]} Ra1 {[%emt 0:00:13] [#]} 47. d6 $1 {[%emt 0:00:09]} Rd1 {[%emt 0:00:09]} 48. Ke5 {[%emt 0:00:00]} h4 {[%emt 0:00:06]} 49. Rf4 {[%emt 0:00:20]} Re1+ {[%emt 0:00:14]} 50. Kd5 {[%emt 0:00:01][%cal Od6d7] White threatens d7! and mate.} Rd1+ {[%emt 0:00:01]} 51. Ke6 {[%emt 0:00:09][%cal Of4e4] White wants to mate with Re4!} Kg5 {[%emt 0:00:05]} 52. Re4 {[%emt 0:00:03] White mates.} Kh5 {[%emt 0:00:08]} 53. Re5+ {[%emt 0:00:06]} g5 {[%emt 0:00:01]} 54. Rd5 {[%emt 0:00:00]} Re1+ {[%emt 0:00:02]} 55. Kf7 {[%emt 0:00:01] Weighted Error Value: White=0.14 (very precise) /Black=0.45.  Loses game:     	---       	Black=1      Mistake:       	White=3     	Black=4      Inaccurate:     	White=1     	Black=2      OK:         	White=13    	Black=10     Best:        	White=5     	Black=2      Strong:       	White=1     	---} 1-0